[Event "FIDE WCCC Open-12 2024"]
[Site "Montesilvano"]
[Date "2024.11.25"]
[Round "10.22"]
[White "Ritzerveld, Noah"]
[Black "Hallmundarson, Birkir"]
[Result "1-0"]
[ECO "B39"]
[WhiteElo "2285"]
[BlackElo "1914"]
[Annotator "RC"]
[PlyCount "59"]
[EventDate "2024.11.18"]
[EventType "swiss"]
[EventCountry "ITA"]
[SourceTitle "playchess.com"]
[Source "ChessBase"]
[SourceQuality "1"]
[TimeControl "5400+30"]

1. e4 {[%emt 0:00:03]} c5 {[%emt 0:00:05]} 2. Nf3 {[%emt 0:00:09]} Nc6 {[%emt 0:00:03]} 3. d4 {[%emt 0:00:04]} cxd4 {[%emt 0:00:04]} 4. Nxd4 {[%emt 0:00:05]} g6 {[%emt 0:00:05]} 5. c4 {[%emt 0:00:05]} Bg7 {[%emt 0:00:03]} 6. Be3 {[%emt 0:00:05]} Nf6 {[%emt 0:00:03]} 7. Nc3 {[%emt 0:00:04]} Ng4 {[%emt 0:00:06]} 8. Qxg4 {[%emt 0:00:06]} Nxd4 {[%emt 0:00:06]} 9. Qd1 {[%emt 0:00:06]} e5 {[%emt 0:00:03]} 10. Bd3 {[%emt 0:00:05]} O-O {[%emt 0:00:15]} 11. O-O {[%emt 0:00:07]} b6 {[%emt 0:00:03]} 12. Qd2 {[%emt 0:01:18]} Bb7 {[%emt 0:00:10]} 13. Rad1 {[%emt 0:00:16]} Ne6 {[%emt 0:00:16]} 14. Bc2 {[%emt 0:07:32]} Bc6 {[%emt 0:00:42]} 15. Nd5 {[%emt 0:07:32]} f5 {[%emt 0:02:43]} 16. exf5 {[%emt 0:07:00]} gxf5 {[%emt 0:00:08]} 17. f4 {[%emt 0:02:28]} e4 {[%emt 0:28:45]} 18. g4 {[%emt 0:09:21]} fxg4 {[%emt 0:00:59]} 19. f5 {[%emt 0:07:27]} Nc7 {[%emt 0:02:46]} 20. Bg5 {[%emt 0:10:23]} Qb8 {[%emt 0:02:12]} 21. Ne7+ {[%emt 0:03:15]} Kf7 {[%emt 0:03:12]} 22. f6 {[%emt 0:00:16]} Bh8 {[%emt 0:01:13]} 23. Nxc6 {[%emt 0:00:22]} dxc6 {[%emt 0:00:26]} 24. Qd7+ {[%emt 0:00:05]} Kg8 {[%emt 0:01:20]} 25. Bxe4 {[%emt 0:00:48]} Rf7 {[%emt 0:02:03]} 26. Bxh7+ {[%emt 0:00:05]} Rxh7 {[%emt 0:01:03]} 27. f7+ {[%emt 0:00:04]} Kf8 {[%emt 0:00:22]} 28. Qe7+ {[%emt 0:00:24]} Kg7 {[%emt 0:00:05]} 29. f8=N+ {[%emt 0:00:14]} Kg8 {[%emt 0:00:13]} 30. Qxh7# {[%emt 0:00:04]} 1-0

[Event "FIDE WCCC Open-12 2024"]
[Site "Montesilvano"]
[Date "2024.11.25"]
[Round "10.23"]
[White "Saminskij, Jan"]
[Black "Rueda Ahumada, Gabriel Omar"]
[Result "1-0"]
[ECO "C45"]
[WhiteElo "2202"]
[BlackElo "1928"]
[Annotator "RC"]
[PlyCount "94"]
[EventDate "2024.11.18"]
[EventType "swiss"]
[EventCountry "ITA"]
[SourceTitle "playchess.com"]
[Source "ChessBase"]
[SourceQuality "1"]
[TimeControl "5400+30"]

1. e4 {[%emt 0:00:16]} e5 {[%emt 0:00:39]} 2. Nf3 {[%emt 0:00:16]} Nc6 {[%emt 0:00:34]} 3. d4 {[%emt 0:00:06]} exd4 {[%emt 0:00:10]} 4. Nxd4 {[%emt 0:00:04]} Bc5 {[%emt 0:01:31]} 5. Nb3 {[%emt 0:00:06]} Bb6 {[%emt 0:01:35]} 6. Nc3 {[%emt 0:00:06]} Nf6 {[%emt 0:01:33]} 7. Qe2 {[%emt 0:00:08]} a5 {[%emt 0:00:55]} 8. a4 {[%emt 0:01:05]} Nb4 {[%emt 0:01:09]} 9. Bg5 {[%emt 0:06:44]} h6 {[%emt 0:04:04]} 10. Bh4 {[%emt 0:01:16]} O-O {[%emt 0:01:01]} 11. O-O-O {[%emt 0:01:46]} Re8 {[%emt 0:03:45]} 12. f3 {[%emt 0:07:26]} Qe7 {[%emt 0:10:14]} 13. g4 {[%emt 0:04:56]} d6 {[%emt 0:16:49]} 14. Bf2 {[%emt 0:09:08]} Qe5 {[%emt 0:13:19]} 15. Bxb6 {[%emt 0:02:09]} cxb6 {[%emt 0:00:04]} 16. Qd2 {[%emt 0:01:41]} Rd8 {[%emt 0:03:37]} 17. h3 {[%emt 0:01:36]} Nh7 {[%emt 0:02:37]} 18. f4 {[%emt 0:01:34]} Qe7 {[%emt 0:00:47]} 19. Bc4 {[%emt 0:05:50]} Be6 {[%emt 0:03:03]} 20. Bxe6 {[%emt 0:00:25]} Qxe6 {[%emt 0:00:01]} 21. Qd4 {[%emt 0:00:26]} b5 {[%emt 0:14:33]} 22. f5 {[%emt 0:04:27]} Qc8 {[%emt 0:03:47]} 23. axb5 {[%emt 0:00:49]} Qc7 {[%emt 0:02:35]} 24. Rd2 {[%emt 0:02:56]} Ng5 {[%emt 0:01:02]} 25. Rf2 {[%emt 0:02:28]} f6 {[%emt 0:05:17]} 26. Kb1 {[%emt 0:14:28]} Nf7 {[%emt 0:01:14]} 27. Rd1 {[%emt 0:00:08]} Ne5 {[%emt 0:02:12]} 28. Nd5 {[%emt 0:02:35]} Nxd5 {[%emt 0:01:55]} 29. Qxd5+ {[%emt 0:00:44]} Kh7 {[%emt 0:00:16]} 30. Re2 {[%emt 0:04:12]} a4 {[%emt 0:01:40]} 31. Nd4 {[%emt 0:00:38]} Qb6 {[%emt 0:00:39]} 32. Ne6 {[%emt 0:01:11]} Rd7 {[%emt 0:01:30]} 33. c4 {[%emt 0:01:53]} Qa5 {[%emt 0:00:25]} 34. Rc1 {[%emt 0:02:43]} a3 {[%emt 0:01:30]} 35. b3 {[%emt 0:00:33]} Kh8 {[%emt 0:00:37]} 36. Ka2 {[%emt 0:00:39]} Qa7 {[%emt 0:00:21]} 37. Qd4 {[%emt 0:01:37]} Qb8 {[%emt 0:00:46]} 38. Nf4 {[%emt 0:00:16]} Qd8 {[%emt 0:01:05]} 39. Rc3 {[%emt 0:00:23]} b6 {[%emt 0:00:22]} 40. Ne6 {[%emt 0:00:53]} Qb8 {[%emt 0:00:02]} 41. Rg2 {[%emt 0:00:17]} g5 {[%emt 0:01:03]} 42. fxg6 {[%emt 0:00:25]} Re7 {[%emt 0:00:19]} 43. Nf4 {[%emt 0:00:12]} Kg7 {[%emt 0:00:34]} 44. h4 {[%emt 0:00:27]} Nd7 {[%emt 0:00:22]} 45. g5 {[%emt 0:00:48]} hxg5 {[%emt 0:00:08]} 46. hxg5 {[%emt 0:00:06]} Re5 {[%emt 0:00:49]} 47. Rh3 {[%emt 0:00:15]} Kf8 {[%emt 0:00:43]} 1-0

[Event "FIDE WCCC Open-12 2024"]
[Site "Montesilvano"]
[Date "2024.11.25"]
[Round "10.24"]
[White "Tona, Leonardo"]
[Black "Diachek, Andrii"]
[Result "0-1"]
[ECO "D02"]
[WhiteElo "1906"]
[BlackElo "2162"]
[Annotator "RC"]
[PlyCount "136"]
[EventDate "2024.11.18"]
[EventType "swiss"]
[EventCountry "ITA"]
[SourceTitle "playchess.com"]
[Source "ChessBase"]
[SourceQuality "1"]
[TimeControl "5400+30"]

1. d4 {[%emt 0:00:03]} Nf6 {[%emt 0:00:04]} 2. Nf3 {[%emt 0:00:03]} e6 {[%emt 0:00:06]} 3. g3 {[%emt 0:00:07]} c5 {[%emt 0:00:09]} 4. c3 {[%emt 0:00:31]} d5 {[%emt 0:01:35]} 5. Bg2 {[%emt 0:00:16]} Nc6 {[%emt 0:00:30]} 6. O-O {[%emt 0:00:17]} Qb6 {[%emt 0:04:01]} 7. e3 {[%emt 0:01:48]} Be7 {[%emt 0:02:50]} 8. Nbd2 {[%emt 0:00:56]} O-O {[%emt 0:04:07]} 9. Re1 {[%emt 0:04:17]} Bd7 {[%emt 0:05:38]} 10. Ne5 {[%emt 0:13:56]} Qc7 {[%emt 0:10:49]} 11. Nxc6 {[%emt 0:05:05]} Bxc6 {[%emt 0:01:20]} 12. a4 {[%emt 0:06:11]} b6 {[%emt 0:05:09]} 13. b3 {[%emt 0:06:54]} Bb7 {[%emt 0:10:04]} 14. Bb2 {[%emt 0:04:00]} Rfc8 {[%emt 0:02:51]} 15. Rc1 {[%emt 0:04:29]} cxd4 {[%emt 0:03:19]} 16. exd4 {[%emt 0:02:23]} a6 {[%emt 0:02:22]} 17. c4 {[%emt 0:04:21]} dxc4 {[%emt 0:00:57]} 18. bxc4 {[%emt 0:00:38]} Bxg2 {[%emt 0:00:57]} 19. Kxg2 {[%emt 0:00:06]} Qb7+ {[%emt 0:08:36]} 20. Qf3 {[%emt 0:07:53]} Qxf3+ {[%emt 0:03:23]} 21. Kxf3 {[%emt 0:02:03]} b5 {[%emt 0:04:15]} 22. cxb5 {[%emt 0:06:07]} Rcb8 {[%emt 0:01:24]} 23. Ne4 {[%emt 0:10:47]} axb5 {[%emt 0:02:11]} 24. Nxf6+ {[%emt 0:01:47]} Bxf6 {[%emt 0:01:24]} 25. axb5 {[%emt 0:00:10]} Rxb5 {[%emt 0:00:21]} 26. Rc2 {[%emt 0:00:28]} g6 {[%emt 0:01:39]} 27. Ree2 {[%emt 0:01:16]} g5 {[%emt 0:04:03]} 28. h3 {[%emt 0:00:31]} Kg7 {[%emt 0:00:34]} 29. Ke4 {[%emt 0:04:01]} Ra4 {[%emt 0:00:43]} 30. f4 {[%emt 0:02:56]} Kg6 {[%emt 0:02:51]} 31. Rcd2 {[%emt 0:02:11]} Rab4 {[%emt 0:03:55]} 32. Bc3 {[%emt 0:01:50]} Rb1 {[%emt 0:02:59]} 33. Rb2 {[%emt 0:00:43]} R5xb2 {[%emt 0:00:59]} 34. Bxb2 {[%emt 0:00:36]} Rd1 {[%emt 0:03:25]} 35. Bc3 {[%emt 0:03:46]} Rh1 {[%emt 0:03:20]} 36. fxg5 {[%emt 0:00:09]} Kxg5 {[%emt 0:00:34]} 37. h4+ {[%emt 0:00:28]} Kg6 {[%emt 0:00:16]} 38. Re3 {[%emt 0:01:21]} Rd1 {[%emt 0:01:48]} 39. Rd3 {[%emt 0:00:34]} Rxd3 {[%emt 0:02:42]} 40. Kxd3 {[%emt 0:00:05]} Kf5 {[%emt 0:00:17]} 41. Ke3 {[%emt 0:00:06]} Kg4 {[%emt 0:00:30]} 42. Kf2 {[%emt 0:00:08]} h5 {[%emt 0:00:23]} 43. Kg2 {[%emt 0:00:15]} Bg7 {[%emt 0:00:56]} 44. Bb2 {[%emt 0:01:16]} Bh8 {[%emt 0:00:40]} 45. Bc3 {[%emt 0:00:09]} Bf6 {[%emt 0:00:16]} 46. Bb2 {[%emt 0:00:08]} Bd8 {[%emt 0:00:42]} 47. Bc3 {[%emt 0:00:18]} Bb6 {[%emt 0:00:19]} 48. Kh2 {[%emt 0:05:16]} Bc7 {[%emt 0:01:07]} 49. Be1 {[%emt 0:00:15]} Kf3 {[%emt 0:00:08]} 50. Kh3 {[%emt 0:00:23]} Bd6 {[%emt 0:00:37]} 51. Kh2 {[%emt 0:00:46]} Ke2 {[%emt 0:01:19]} 52. Bc3 {[%emt 0:00:19]} Kf2 {[%emt 0:00:31]} 53. Kh3 {[%emt 0:00:23]} Kf3 {[%emt 0:00:30]} 54. Be1 {[%emt 0:00:45]} Bc7 {[%emt 0:00:14]} 55. Kh2 {[%emt 0:00:18]} Bb8 {[%emt 0:00:30]} 56. Kh3 {[%emt 0:00:10]} Bd6 {[%emt 0:00:13]} 57. Kh2 {[%emt 0:00:06]} Ba3 {[%emt 0:00:49]} 58. Bc3 {[%emt 0:00:23]} Bc1 {[%emt 0:00:32]} 59. Kh3 {[%emt 0:02:33]} Be3 {[%emt 0:00:12]} 60. Kh2 {[%emt 0:00:00]} Bf2 {[%emt 0:00:15]} 61. Kh3 {[%emt 0:00:03]} Bxg3 {[%emt 0:00:32]} 62. Bd2 {[%emt 0:00:42]} Bf2 {[%emt 0:00:30]} 63. Bc3 {[%emt 0:00:07]} Ke4 {[%emt 0:00:35]} 64. Bb2 {[%emt 0:00:25]} Bxd4 {[%emt 0:00:12]} 65. Bc1 {[%emt 0:00:11]} Kf3 {[%emt 0:00:08]} 66. Bd2 {[%emt 0:00:14]} e5 {[%emt 0:00:13]} 67. Be1 {[%emt 0:00:26]} e4 {[%emt 0:00:10]} 68. Bg3 {[%emt 0:00:23]} Bf2 {[%emt 0:00:30]} 0-1

[Event "FIDE WCCC Open-12 2024"]
[Site "Montesilvano"]
[Date "2024.11.25"]
[Round "10.25"]
[White "Xia, Jinnan"]
[Black "Shilon Rahav, Eliran"]
[Result "1-0"]
[ECO "D35"]
[WhiteElo "1850"]
[BlackElo "2150"]
[Annotator "RC"]
[PlyCount "135"]
[EventDate "2024.11.18"]
[EventType "swiss"]
[EventCountry "ITA"]
[SourceTitle "playchess.com"]
[Source "ChessBase"]
[SourceQuality "1"]
[TimeControl "5400+30"]

1. d4 {[%emt 0:00:01]} d5 {[%emt 0:00:12]} 2. c4 {[%emt 0:00:04]} e6 {[%emt 0:00:08]} 3. Nc3 {[%emt 0:00:03]} Nf6 {[%emt 0:00:12]} 4. cxd5 {[%emt 0:00:06]} exd5 {[%emt 0:00:07]} 5. Bg5 {[%emt 0:00:05]} Be6 {[%emt 0:00:11]} 6. e3 {[%emt 0:01:09]} Nbd7 {[%emt 0:00:15]} 7. Bd3 {[%emt 0:00:17]} c6 {[%emt 0:00:12]} 8. Nge2 {[%emt 0:00:06]} h6 {[%emt 0:00:09]} 9. Bh4 {[%emt 0:00:03]} g5 {[%emt 0:00:10]} 10. Bg3 {[%emt 0:00:12]} Nh5 {[%emt 0:00:10]} 11. O-O {[%emt 0:06:33]} Nxg3 {[%emt 0:00:25]} 12. Nxg3 {[%emt 0:00:05]} h5 {[%emt 0:03:34]} 13. f4 {[%emt 0:01:49]} gxf4 {[%emt 0:02:45]} 14. exf4 {[%emt 0:01:41]} Nf6 {[%emt 0:01:24]} 15. Re1 {[%emt 0:03:25]} Be7 {[%emt 0:03:37]} 16. f5 {[%emt 0:12:05]} Bc8 {[%emt 0:03:54]} 17. Na4 {[%emt 0:02:17]} Kf8 {[%emt 0:04:08]} 18. Qd2 {[%emt 0:00:58]} Bd6 {[%emt 0:09:03]} 19. Nf1 {[%emt 0:00:38]} Qc7 {[%emt 0:03:08]} 20. Qg5 {[%emt 0:06:19]} Ng4 {[%emt 0:02:53]} 21. g3 {[%emt 0:05:15]} Be7 {[%emt 0:02:32]} 22. Qd2 {[%emt 0:00:06]} Bf6 {[%emt 0:02:58]} 23. Bc2 {[%emt 0:00:48]} Nh6 {[%emt 0:02:03]} 24. Re3 {[%emt 0:12:09]} Kg7 {[%emt 0:08:50]} 25. Rf3 {[%emt 0:06:49]} b6 {[%emt 0:01:51]} 26. Ne3 {[%emt 0:01:39]} Bb7 {[%emt 0:03:14]} 27. Nc3 {[%emt 0:00:46]} Rad8 {[%emt 0:01:58]} 28. Bb3 {[%emt 0:06:34]} Rhe8 {[%emt 0:06:51]} 29. Ng2 {[%emt 0:05:14]} c5 {[%emt 0:02:30]} 30. Ne2 {[%emt 0:01:34]} Kh7 {[%emt 0:04:35]} 31. Ngf4 {[%emt 0:02:32]} Qe7 {[%emt 0:11:33]} 32. Ba4 {[%emt 0:05:29]} Rg8 {[%emt 0:04:19]} 33. Nxh5 {[%emt 0:01:15]} Bg5 {[%emt 0:00:14]} 34. f6 {[%emt 0:10:46]} Qe4 {[%emt 0:03:07]} 35. Rf4 {[%emt 0:01:26]} Qe6 {[%emt 0:01:02]} 36. Qd3+ {[%emt 0:00:58]} Rg6 {[%emt 0:01:36]} 37. Bc2 {[%emt 0:03:32]} Re8 {[%emt 0:00:36]} 38. Rf2 {[%emt 0:02:22]} Ng4 {[%emt 0:03:50]} 39. Rg2 {[%emt 0:01:11]} Ne3 {[%emt 0:05:42]} 40. Nef4 {[%emt 0:01:23]} Qe4 {[%emt 0:00:29]} 41. Qxe4 {[%emt 0:00:40]} dxe4 {[%emt 0:00:04]} 42. Ba4 {[%emt 0:00:33]} Nxg2 {[%emt 0:00:32]} 43. Nxg6 {[%emt 0:00:18]} Rd8 {[%emt 0:01:30]} 44. Ne5 {[%emt 0:00:17]} Rxd4 {[%emt 0:00:43]} 45. Nxf7 {[%emt 0:00:51]} Be3+ {[%emt 0:00:01]} 46. Kxg2 {[%emt 0:00:06]} Rxa4 {[%emt 0:00:09]} 47. Nd6 {[%emt 0:00:54]} Bd5 {[%emt 0:00:44]} 48. b3 {[%emt 0:00:33]} Rd4 {[%emt 0:00:40]} 49. Nf5 {[%emt 0:00:32]} Rd2+ {[%emt 0:00:08]} 50. Kh3 {[%emt 0:00:13]} Bd4 {[%emt 0:01:11]} 51. Rf1 {[%emt 0:00:47]} e3 {[%emt 0:01:06]} 52. Nf4 {[%emt 0:00:14]} Rf2 {[%emt 0:01:31]} 53. Nxe3 {[%emt 0:00:38]} Rxf1 {[%emt 0:01:10]} 54. Nxf1 {[%emt 0:00:04]} Be4 {[%emt 0:00:31]} 55. Nd2 {[%emt 0:00:17]} Bc2 {[%emt 0:00:27]} 56. f7 {[%emt 0:01:01]} Kg7 {[%emt 0:00:56]} 57. Ne6+ {[%emt 0:00:10]} Kxf7 {[%emt 0:00:01]} 58. Nxd4 {[%emt 0:00:10]} cxd4 {[%emt 0:00:01]} 59. Kg4 {[%emt 0:00:05]} a5 {[%emt 0:00:22]} 60. Kf4 {[%emt 0:01:02]} Ke6 {[%emt 0:00:48]} 61. h4 {[%emt 0:01:17]} b5 {[%emt 0:00:02]} 62. g4 {[%emt 0:00:16]} b4 {[%emt 0:01:35]} 63. h5 {[%emt 0:00:25]} a4 {[%emt 0:00:01]} 64. bxa4 {[%emt 0:00:43]} Bxa4 {[%emt 0:00:11]} 65. Nb3 {[%emt 0:00:27]} Kd5 {[%emt 0:01:11]} 66. h6 {[%emt 0:00:07]} d3 {[%emt 0:00:57]} 67. h7 {[%emt 0:00:24]} d2 {[%emt 0:00:27]} 68. Nxd2 {[%emt 0:00:07]} 1-0

[Event "FIDE WCCC Open-12 2024"]
[Site "Montesilvano"]
[Date "2024.11.25"]
[Round "10.26"]
[White "Huseynov, Ahmed"]
[Black "Belin, Anton"]
[Result "1-0"]
[ECO "D00"]
[WhiteElo "1886"]
[BlackElo "2138"]
[Annotator "RC"]
[PlyCount "117"]
[EventDate "2024.11.18"]
[EventType "swiss"]
[EventCountry "ITA"]
[SourceTitle "playchess.com"]
[Source "ChessBase"]
[SourceQuality "1"]
[TimeControl "5400+30"]

1. d4 {[%emt 0:00:03]} Nf6 {[%emt 0:00:07]} 2. Bg5 {[%emt 0:00:06]} d5 {[%emt 0:00:26]} 3. e3 {[%emt 0:00:08]} e6 {[%emt 0:00:36]} 4. Nd2 {[%emt 0:00:09]} Be7 {[%emt 0:01:25]} 5. Bd3 {[%emt 0:00:17]} O-O {[%emt 0:01:18]} 6. f4 {[%emt 0:06:02]} b6 {[%emt 0:05:00]} 7. Qe2 {[%emt 0:03:32]} Nbd7 {[%emt 0:02:39]} 8. Nh3 {[%emt 0:06:15]} c5 {[%emt 0:02:48]} 9. c3 {[%emt 0:00:14]} Bb7 {[%emt 0:01:29]} 10. Nf2 {[%emt 0:05:11]} h6 {[%emt 0:04:28]} 11. h4 {[%emt 0:02:49]} Re8 {[%emt 0:04:04]} 12. g4 {[%emt 0:05:54]} cxd4 {[%emt 0:05:21]} 13. cxd4 {[%emt 0:12:06]} Bb4 {[%emt 0:04:40]} 14. Bxf6 {[%emt 0:16:46]} gxf6 {[%emt 0:09:20]} 15. a3 {[%emt 0:06:29]} Bxd2+ {[%emt 0:01:15]} 16. Qxd2 {[%emt 0:00:29]} Rc8 {[%emt 0:00:50]} 17. O-O {[%emt 0:02:46]} f5 {[%emt 0:04:47]} 18. g5 {[%emt 0:01:57]} hxg5 {[%emt 0:00:10]} 19. hxg5 {[%emt 0:01:03]} Kg7 {[%emt 0:00:57]} 20. Kg2 {[%emt 0:08:18]} Qe7 {[%emt 0:04:57]} 21. Rh1 {[%emt 0:02:27]} Rh8 {[%emt 0:04:44]} 22. Qb4 {[%emt 0:00:30]} Qxb4 {[%emt 0:02:00]} 23. axb4 {[%emt 0:00:03]} Rxh1 {[%emt 0:00:24]} 24. Nxh1 {[%emt 0:00:05]} a6 {[%emt 0:00:30]} 25. b5 {[%emt 0:05:08]} a5 {[%emt 0:03:48]} 26. Kf3 {[%emt 0:03:01]} Nf8 {[%emt 0:03:40]} 27. Ng3 {[%emt 0:01:19]} Ng6 {[%emt 0:01:56]} 28. Ne2 {[%emt 0:00:45]} Ne7 {[%emt 0:05:01]} 29. Nc3 {[%emt 0:03:24]} Rc7 {[%emt 0:01:32]} 30. Ke2 {[%emt 0:01:04]} Nc8 {[%emt 0:00:38]} 31. Na4 {[%emt 0:01:25]} Kg6 {[%emt 0:01:45]} 32. Kd2 {[%emt 0:00:18]} Kg7 {[%emt 0:00:26]} 33. b3 {[%emt 0:00:26]} Kg6 {[%emt 0:00:43]} 34. Rh1 {[%emt 0:01:37]} Kg7 {[%emt 0:00:31]} 35. Rh6 {[%emt 0:01:46]} Re7 {[%emt 0:01:22]} 36. Nc3 {[%emt 0:01:36]} Nd6 {[%emt 0:00:57]} 37. Ne2 {[%emt 0:00:21]} Rc7 {[%emt 0:01:15]} 38. Ng3 {[%emt 0:01:24]} Ne4+ {[%emt 0:02:29]} 39. Bxe4 {[%emt 0:00:05]} dxe4 {[%emt 0:00:09]} 40. Nh5+ {[%emt 0:00:04]} Kf8 {[%emt 0:00:07]} 41. Nf6 {[%emt 0:02:34]} Ke7 {[%emt 0:00:28]} 42. Rh8 {[%emt 0:00:39]} Rc8 {[%emt 0:00:34]} 43. Rh7 {[%emt 0:00:29]} Rc7 {[%emt 0:00:24]} 44. Ng8+ {[%emt 0:00:21]} Kf8 {[%emt 0:01:12]} 45. Nh6 {[%emt 0:00:09]} Re7 {[%emt 0:01:00]} 46. Rh8+ {[%emt 0:01:04]} Kg7 {[%emt 0:00:09]} 47. Rb8 {[%emt 0:00:13]} Bd5 {[%emt 0:00:56]} 48. Ng8 {[%emt 0:00:33]} Rb7 {[%emt 0:00:14]} 49. Rc8 {[%emt 0:00:28]} f6 {[%emt 0:01:05]} 50. Nxf6 {[%emt 0:00:37]} Bxb3 {[%emt 0:00:38]} 51. Rg8+ {[%emt 0:00:04]} Kf7 {[%emt 0:00:04]} 52. Rh8 {[%emt 0:00:09]} Re7 {[%emt 0:00:41]} 53. Rh7+ {[%emt 0:00:09]} Kf8 {[%emt 0:00:09]} 54. Nd7+ {[%emt 0:00:17]} Ke8 {[%emt 0:00:52]} 55. Rxe7+ {[%emt 0:00:09]} Kxe7 {[%emt 0:00:07]} 56. Nxb6 {[%emt 0:00:04]} a4 {[%emt 0:01:20]} 57. Kc3 {[%emt 0:00:13]} Kf7 {[%emt 0:00:46]} 58. Nc4 {[%emt 0:00:22]} Ke7 {[%emt 0:00:15]} 59. b6 {[%emt 0:00:11]} 1-0

[Event "FIDE WCCC Open-12 2024"]
[Site "Montesilvano"]
[Date "2024.11.25"]
[Round "10.27"]
[White "Berdashkevich, Makar"]
[Black "Obidov, Biloliddin"]
[Result "1-0"]
[ECO "B55"]
[WhiteElo "1848"]
[BlackElo "2088"]
[Annotator "NA RC"]
[PlyCount "123"]
[EventDate "2024.11.18"]
[EventType "swiss"]
[EventCountry "ITA"]
[SourceTitle "playchess.com"]
[Source "ChessBase"]
[SourceQuality "1"]
[TimeControl "5400+30"]

1. e4 {[%emt 0:01:35]} c5 {[%emt 0:00:01]} 2. Nf3 {[%emt 0:00:22]} d6 {[%emt 0:00:02]} 3. d4 {[%emt 0:00:22]} cxd4 {[%emt 0:00:01]} 4. Nxd4 {[%emt 0:00:12]} Nf6 {[%emt 0:00:04]} 5. f3 {[%emt 0:00:15]} e5 {[%emt 0:00:17]} 6. Nb3 {[%emt 0:00:24]} d5 {[%emt 0:00:09]} 7. Bg5 {[%emt 0:01:00]} d4 {[%emt 0:00:00]} 8. c3 {[%emt 0:01:00]} Nc6 {[%emt 0:00:04]} 9. cxd4 {[%emt 0:00:30]} Bb4+ {[%emt 0:00:04]} 10. Bd2 {[%emt 0:00:54]} Nxe4 {[%emt 0:00:59]} 11. Bxb4 {[%emt 0:00:39]} Qh4+ {[%emt 0:00:01]} 12. g3 {[%emt 0:00:16]} Nxg3 {[%emt 0:00:03]} 13. hxg3 {[%emt 0:00:15]} Qxh1 {[%emt 0:00:10]} 14. Bc5 {[%emt 0:01:06]} Bh3 {[%emt 0:01:19]} 15. N1d2 {[%emt 0:01:04]} O-O-O {[%emt 0:00:46]} 16. Qc2 {[%emt 0:01:05]} Bxf1 {[%emt 0:01:16]} 17. O-O-O {[%emt 0:02:36]} Qh6 {[%emt 0:01:19]} 18. Rxf1 {[%emt 0:01:10]} b6 {[%emt 0:09:49]} 19. Qf5+ {[%emt 0:01:01]} Kb8 {[%emt 0:00:58]} 20. Ba3 {[%emt 0:01:21]} exd4 {[%emt 0:02:03]} 21. Qxf7 {[%emt 0:06:25]} Ne5 {[%emt 0:01:27]} 22. Qf5 {[%emt 0:03:56]} Nc4 {[%emt 0:01:41]} 23. Rd1 {[%emt 0:17:21]} Rhe8 {[%emt 0:27:00]} 24. Qd3 {[%emt 0:10:15]} Nxd2 {[%emt 0:19:01]} 25. Nxd2 {[%emt 0:07:09]} Re3 {[%emt 0:00:10]} 26. Qf5 {[%emt 0:06:50]} Qc6+ {[%emt 0:02:27]} 27. Kb1 {[%emt 0:09:11]} Rc8 {[%emt 0:01:21]} 28. b3 {[%emt 0:05:47]} g6 {[%emt 0:02:35]} 29. Qf4+ {[%emt 0:03:12]} Ka8 {[%emt 0:00:02]} 30. Rc1 {[%emt 0:07:31]} Rc3 {[%emt 0:00:04]} 31. Qe4 {[%emt 0:03:33]} Rxc1+ {[%emt 0:01:56]} 32. Bxc1 {[%emt 0:01:16]} Kb7 {[%emt 0:00:34]} 33. Bb2 {[%emt 0:02:03]} Qxe4+ {[%emt 0:00:02]} 34. Nxe4 {[%emt 0:01:21]} Rf8 {[%emt 0:00:40]} 35. f4 {[%emt 0:02:20]} d3 {[%emt 0:00:57]} 36. Kc1 {[%emt 0:00:31]} Rc8+ {[%emt 0:01:32]} 37. Bc3 {[%emt 0:00:46]} Kc6 {[%emt 0:00:16]} 38. Kd2 {[%emt 0:00:37]} Rd8 {[%emt 0:00:23]} 39. Ng5 {[%emt 0:01:22]} Rd7 {[%emt 0:01:20]} 40. Nf3 {[%emt 0:00:40]} Kd5 {[%emt 0:01:10]} 41. Kxd3 {[%emt 0:00:44]} Ke6+ {[%emt 0:00:59]} 42. Ke4 {[%emt 0:00:39]} Rc7 {[%emt 0:01:52]} 43. Be5 {[%emt 0:00:20]} Rc1 {[%emt 0:00:25]} 44. g4 {[%emt 0:00:33]} h5 {[%emt 0:01:26]} 45. f5+ {[%emt 0:00:51]} gxf5+ {[%emt 0:00:02]} 46. gxf5+ {[%emt 0:00:05]} Kd7 {[%emt 0:00:39]} 47. f6 {[%emt 0:00:41]} Rc2 {[%emt 0:00:15]} 48. Ng5 {[%emt 0:00:27]} h4 {[%emt 0:01:30]} 49. Kf5 {[%emt 0:00:48]} Rxa2 {[%emt 0:01:53]} 50. f7 {[%emt 0:00:36]} Rf2+ {[%emt 0:00:06]} 51. Kg6 {[%emt 0:00:16]} Ke7 {[%emt 0:01:28]} 52. Bd6+ {[%emt 0:00:38]} Kd7 {[%emt 0:00:49]} 53. f8=Q {[%emt 0:00:28]} Rxf8 {[%emt 0:00:03]} 54. Bxf8 {[%emt 0:00:06]} a5 {[%emt 0:00:11]} 55. Kf5 {[%emt 0:00:23]} Kc6 {[%emt 0:00:36]} 56. Ke5 {[%emt 0:00:22]} Kb5 {[%emt 0:00:16]} 57. Kd4 {[%emt 0:00:21]} a4 {[%emt 0:00:02]} 58. b4 {[%emt 0:00:09]} a3 {[%emt 0:00:19]} 59. Kc3 {[%emt 0:00:15]} Ka4 {[%emt 0:00:02]} 60. Be7 {[%emt 0:01:19]} a2 {[%emt 0:00:44]} 61. Kb2 {[%emt 0:00:09]} b5 {[%emt 0:00:05]} 62. Nh3 {[%emt 0:00:16]} 1-0